fUST/lending_fUST_20250301
["ID","MTS","AMOUNT","RATE_DAILY","PERIOD"]
[354874557,1740763877363,-500.0,0.00049589,120]
[354874558,1740763877406,-500.0,0.00049589,120]
[354874559,1740763877446,-500.0,0.00049589,120]
[354874560,1740763877485,-2413.14,0.00049589,120]
[354874561,1740763877526,-500.0,0.00049589,120]
[354874562,1740763877566,-500.0,0.00049589,120]
[354874563,1740763877606,-500.0,0.00049589,120]
[354874564,1740763877646,-500.0,0.00049589,120]
[354874565,1740763877685,-500.0,0.00049589,120]
[354874566,1740763877725,-500.0,0.00049589,120]
[354874567,1740763877763,-500.0,0.00049589,120]
[354874568,1740763877802,-500.0,0.00049589,120]
[354874569,1740763877840,-501.38845302,0.00049589,120]
[354874570,1740763877879,-500.0,0.00049589,120]
[354874571,1740763877918,-1750.37,0.00049589,120]
[354874572,1740763877958,-357.93326803,0.00049589,120]
[354874573,1740763878002,-500.0,0.00049589,120]
[354874574,1740763878045,-500.0,0.00049589,120]
[354874575,1740763878088,-556.98308263,0.00049589,120]
[354874576,1740763878134,-500.0,0.00049589,120]
[354874577,1740763878182,-500.0,0.00049589,120]
[354874578,1740763878230,-500.0,0.00049589,120]
[354874579,1740763878277,-500.0,0.00049589,120]
[354874580,1740763878323,-500.0,0.00049589,120]
[354874581,1740763878370,-500.0,0.00049589,120]
[354874582,1740763878419,-500.0,0.00049589,120]
[354874583,1740763878466,-279.61633334,0.00049589,120]
[354874584,1740763878510,-516.35703733,0.00049589,120]
[354874585,1740763878556,-4403.85,0.00049589,120]
[354874586,1740763878606,-500.0,0.00049589,120]
[354874587,1740763878656,-500.0,0.00049589,120]
[354874588,1740763878705,-500.0,0.00049589,120]
[354874589,1740763878753,-500.0,0.00049589,120]
[354874590,1740763878797,-500.0,0.00049589,120]
[354874591,1740763878841,-500.0,0.00049589,120]
[354874592,1740763878885,-500.0,0.00049589,120]
[354874593,1740763878926,-500.0,0.00049589,120]
[354874594,1740763878968,-500.0,0.00049589,120]
[354874595,1740763879012,-500.0,0.00049589,120]
[354874596,1740763879055,-500.0,0.00049589,120]
[354874597,1740763879098,-500.0,0.00049589,120]
[354874598,1740763879141,-500.0,0.00049589,120]
[354874599,1740763879183,-515.1832253,0.00049589,120]
[354874600,1740763879225,-500.0,0.00049589,120]
[354874601,1740763879266,-500.0,0.00049589,120]
[354874602,1740763879307,-898.49,0.00049863,120]
[354874603,1740763879349,-500.0,0.00049863,120]
[354874604,1740763879391,-500.0,0.00049863,120]
[354874605,1740763879436,-1209.27,0.00049863,120]
[354874606,1740763879479,-500.0,0.00049863,120]
[354874607,1740763879522,-595.04,0.00049863,120]
[354874608,1740763879565,-500.0,0.00049863,120]
[354874609,1740763879609,-500.0,0.00049863,120]
[354874610,1740763879652,-1327.77,0.00049863,120]
[354874611,1740763879693,-500.0,0.00049863,120]
[354874612,1740763879737,-19765.95,0.00049863,120]
[354874613,1740763879781,-904.26,0.00049863,120]
[354874614,1740763879947,-1574.5,0.00049863,120]
[354874615,1740763879992,-500.0,0.00049863,120]
[354874616,1740763880035,-522.14,0.00049863,120]
[354874617,1740763880078,-500.0,0.00049863,120]
[354874618,1740763880120,-500.0,0.00049863,120]
[354874619,1740763880164,-657.81,0.00049863,120]
[354874620,1740763880209,-3240.41,0.00049863,120]
[354874621,1740763880252,-500.0,0.00049863,120]
[354874622,1740763880296,-3440.37,0.00049863,120]
[354874623,1740763880338,-6768.94,0.00049863,120]
[354874624,1740763880385,-500.0,0.00049863,120]
[354874625,1740763880426,-500.0,0.00049863,120]
[354874626,1740763880466,-837.24,0.00049863,120]
[354874627,1740763880505,-2561.5,0.00049863,120]
[354874628,1740763880546,-1422.08,0.00049863,120]
[354874629,1740763880588,-2686.01,0.00049863,120]
[354874630,1740763880631,-500.0,0.00049863,120]
[354874631,1740763880673,-827.72,0.00049863,120]
[354874632,1740763880723,-2695.44,0.00049863,120]
[354874633,1740763880763,-435.87599151,0.00049863,120]
[354874634,1740763880803,-13548.47,0.00049863,120]
[354874635,1740763880842,-500.0,0.00049863,120]
[354874636,1740763880893,-500.0,0.00049863,120]
[354874637,1740763880933,-5034.29,0.00049863,120]
[354874638,1740763880973,-500.0,0.00049863,120]
[354874639,1740763881012,-500.0,0.00049863,120]
[354874640,1740763881052,-545.4,0.00049863,120]
[354874641,1740763881093,-2823.14,0.00049863,120]
[354874642,1740763881135,-500.0,0.00049863,120]
[354874643,1740763881177,-637.56,0.00049863,120]
[354874644,1740763881221,-207.78,0.00049863,120]
[354874645,1740763881262,-500.0,0.00049863,120]
[354874646,1740763881302,-2413.14,0.00049863,120]
[354874647,1740763881341,-188.67,0.00049863,120]
[354874648,1740763881388,-500.0,0.00049863,120]
[354874649,1740763881430,-377.39,0.00049863,120]
[354874650,1740763881472,-524.21,0.00049863,120]
[354874651,1740763881512,-500.0,0.00049863,120]
[354874652,1740763881555,-500.0,0.00049863,120]
[354874653,1740763881595,-500.0,0.00049863,120]
[354874654,1740763881635,-1750.37,0.00049863,120]
[354874655,1740763881673,-500.0,0.00049863,120]
[354874656,1740763881711,-502.02357294,0.00049863,120]
[354874657,1740763881750,-500.0,0.00049863,120]
[354874658,1740763881787,-500.0,0.00049863,120]
[354874659,1740763881824,-500.0,0.00049863,120]
[354874660,1740763881863,-500.0,0.00049863,120]
[354874661,1740763881901,-4403.85,0.00049863,120]
[354874662,1740763881943,-500.0,0.00049863,120]
[354874663,1740763881983,-500.0,0.00049863,120]
[354874664,1740763882023,-500.0,0.00049863,120]
[354874665,1740763882063,-500.0,0.00049863,120]
[354874666,1740763882102,-500.0,0.00049863,120]
[354874667,1740763882141,-500.0,0.00049863,120]
[354874668,1740763882180,-500.0,0.00049863,120]
[354874669,1740763882224,-500.0,0.00049863,120]
[354874670,1740763882264,-500.0,0.00049863,120]
[354874671,1740763882303,-500.0,0.00049863,120]
[354874672,1740763882342,-898.49,0.00050136,120]
[354874673,1740763882381,-500.0,0.00050136,120]
[354874674,1740763882424,-500.0,0.00050136,120]
[354874675,1740763882464,-1209.27,0.00050136,120]
[354874676,1740763882505,-500.0,0.00050136,120]
[354874677,1740763882546,-595.04,0.00050136,120]
[354874678,1740763882587,-500.0,0.00050136,120]
[354874679,1740763882628,-500.0,0.00050136,120]
[354874680,1740763882681,-1327.77,0.00050136,120]
[354874681,1740763882722,-19765.95,0.00050136,120]
[354874682,1740763882765,-904.26,0.00050136,120]
[354874683,1740763882807,-1574.5,0.00050136,120]
[354874684,1740763882849,-500.0,0.00050136,120]
[354874685,1740763882891,-522.14,0.00050136,120]
[354874686,1740763882931,-500.0,0.00050136,120]
[354874687,1740763882972,-182.03,0.00050136,120]
[354874688,1740763883016,-657.81,0.00050136,120]
[354874689,1740763883058,-3240.41,0.00050136,120]
[354874690,1740763883103,-500.0,0.00050136,120]
[354874691,1740763883149,-3440.37,0.00050136,120]
[354874692,1740763883191,-6768.94,0.00050136,120]
[354874693,1740763883234,-500.0,0.00050136,120]
[354874694,1740763883275,-500.0,0.00050136,120]
[354874695,1740763883317,-837.24,0.00050136,120]
[354874696,1740763883356,-2561.5,0.00050136,120]
[354874697,1740763883395,-1422.08,0.00050136,120]
[354874698,1740763883432,-2686.01,0.00050136,120]
[354874699,1740763883470,-827.72,0.00050136,120]
[354874700,1740763883508,-2695.44,0.00050136,120]
[354874701,1740763883550,-13548.47,0.00050136,120]
[354874702,1740763883590,-500.0,0.00050136,120]
[354874703,1740763883630,-5034.29,0.00050136,120]
[354874704,1740763883672,-545.4,0.00050136,120]
[354874705,1740763883713,-500.0,0.00050136,120]
[354874706,1740763883752,-2823.14,0.00050136,120]
[354874707,1740763883793,-500.0,0.00050136,120]
[354874708,1740763883834,-637.56,0.00050136,120]
[354874709,1740763883991,-151.69755234,0.00050136,120]
[354874710,1740763884036,-2413.14,0.00050136,120]
[354874711,1740763884081,-500.0,0.00050136,120]
[354874712,1740763884122,-500.0,0.00050136,120]
[354874713,1740763884167,-500.0,0.00050136,120]
[354874714,1740763884210,-453.28118778,0.00050136,120]
[354874715,1740763884253,-1750.37,0.00050136,120]
[354874716,1740763884295,-500.0,0.00050136,120]
[354874717,1740763884336,-500.0,0.00050136,120]
[354874718,1740763884378,-500.0,0.00050136,120]
[354874719,1740763884427,-500.0,0.00050136,120]
[354874720,1740763884470,-500.0,0.00050136,120]
[354874721,1740763884512,-4403.85,0.00050136,120]
[354874722,1740763884559,-500.0,0.00050136,120]
[354874723,1740763884603,-500.0,0.00050136,120]
[354874724,1740763884649,-500.0,0.00050136,120]
[354874725,1740763884694,-500.0,0.00050136,120]
[354874726,1740763884737,-500.0,0.00050136,120]
[354874727,1740763884782,-500.0,0.00050136,120]
[354874728,1740763884828,-898.49,0.0005041,120]
[354874729,1740763884872,-500.0,0.0005041,120]
[354874730,1740763884915,-500.0,0.0005041,120]
[354874731,1740763884957,-1209.27,0.0005041,120]
[354874732,1740763884999,-500.0,0.0005041,120]
[354874733,1740763885043,-595.04,0.0005041,120]
[354874734,1740763885085,-223.28506182,0.0005041,120]
[354874735,1740763885127,-500.0,0.0005041,120]
[354874736,1740763885169,-1327.77,0.0005041,120]
[354874737,1740763885211,-19765.95,0.0005041,120]
[354874738,1740763885253,-904.26,0.0005041,120]
[354874739,1740763885295,-1574.5,0.0005041,120]
[354874740,1740763885336,-522.14,0.0005041,120]
[354874741,1740763885379,-500.0,0.0005041,120]
[354874742,1740763885425,-657.81,0.0005041,120]
[354874743,1740763885467,-3240.41,0.0005041,120]
[354874744,1740763885512,-500.0,0.0005041,120]
[354874745,1740763885555,-3440.37,0.0005041,120]
[354874746,1740763885597,-6768.94,0.0005041,120]
[354874747,1740763885639,-500.0,0.0005041,120]
[354874748,1740763885682,-500.0,0.0005041,120]
[354874749,1740763885724,-837.24,0.0005041,120]
[354874750,1740763885765,-2561.5,0.0005041,120]
[354874751,1740763885806,-1422.08,0.0005041,120]
[354874752,1740763885847,-2686.01,0.0005041,120]
[354874753,1740763885891,-827.72,0.0005041,120]
[354874754,1740763885931,-2695.44,0.0005041,120]
[354874755,1740763885975,-13548.47,0.0005041,120]
[354874756,1740763886017,-500.0,0.0005041,120]
[354874757,1740763886058,-5034.29,0.0005041,120]
[354874758,1740763886098,-545.4,0.0005041,120]
[354874759,1740763886139,-500.0,0.0005041,120]
[354874760,1740763886178,-2823.14,0.0005041,120]
[354874761,1740763886220,-500.0,0.0005041,120]
[354874762,1740763886263,-637.56,0.0005041,120]
[354874763,1740763886305,-2413.14,0.0005041,120]
[354874764,1740763886348,-500.0,0.0005041,120]
[354874765,1740763886389,-500.0,0.0005041,120]
[354874766,1740763886434,-500.0,0.0005041,120]
[354874767,1740763886476,-1750.37,0.0005041,120]
[354874768,1740763886519,-500.0,0.0005041,120]
[354874769,1740763886561,-500.0,0.0005041,120]
[354874770,1740763886603,-188.3,0.0005041,120]
[354874771,1740763886645,-500.0,0.0005041,120]
[354874772,1740763886685,-500.0,0.0005041,120]
[354874773,1740763886724,-4403.85,0.0005041,120]
[354874774,1740763886763,-500.0,0.0005041,120]
[354874775,1740763886805,-500.0,0.0005041,120]
[354874776,1740763886848,-500.0,0.0005041,120]
[354874777,1740763886891,-500.0,0.0005041,120]
[354874778,1740763886933,-500.0,0.0005041,120]
[354874779,1740763886974,-500.0,0.0005041,120]
[354874780,1740763887014,-898.49,0.00050684,120]
[354874781,1740763887054,-500.0,0.00050684,120]
[354874782,1740763887092,-190.46008604,0.00050684,120]
[354874783,1740763887132,-1209.27,0.00050684,120]
[354874784,1740763887174,-500.0,0.00050684,120]
[354874785,1740763887217,-595.04,0.00050684,120]
[354874786,1740763887259,-372.6380405,0.00050684,120]
[354874787,1740763887301,-1327.77,0.00050684,120]
[354874788,1740763887342,-19765.95,0.00050684,120]
[354874789,1740763887388,-904.26,0.00050684,120]
[354874790,1740763887433,-1574.5,0.00050684,120]
[354874791,1740763887476,-522.14,0.00050684,120]
[354874792,1740763887517,-500.0,0.00050684,120]
[354874793,1740763887559,-657.81,0.00050684,120]
[354874794,1740763887602,-3240.41,0.00050684,120]
[354874795,1740763887644,-500.0,0.00050684,120]
[354874796,1740763887689,-3440.37,0.00050684,120]
[354874797,1740763887732,-6768.94,0.00050684,120]
[354874798,1740763887774,-500.0,0.00050684,120]
[354874799,1740763887813,-500.0,0.00050684,120]
[354874800,1740763887855,-837.24,0.00050684,120]
[354874801,1740763887897,-2561.5,0.00050684,120]
[354874802,1740763887938,-1422.08,0.00050684,120]
[354874803,1740763888105,-2686.01,0.00050684,120]
[354874804,1740763888151,-827.72,0.00050684,120]
[354874805,1740763888196,-2695.44,0.00050684,120]
[354874806,1740763888239,-13548.47,0.00050684,120]
[354874807,1740763888281,-500.0,0.00050684,120]
[354874808,1740763888322,-5034.29,0.00050684,120]
[354874809,1740763888365,-545.4,0.00050684,120]
[354874810,1740763888408,-500.0,0.00050684,120]
[354874811,1740763888450,-2823.14,0.00050684,120]
[354874812,1740763888494,-368.12362341,0.00050684,120]
[354874813,1740763888537,-637.56,0.00050684,120]
[354874814,1740763888582,-2413.14,0.00050684,120]
[354874815,1740763888626,-500.0,0.00050684,120]
[354874816,1740763888671,-500.0,0.00050684,120]
[354874817,1740763888716,-500.0,0.00050684,120]
[354874818,1740763888761,-1750.37,0.00050684,120]
[354874819,1740763888803,-500.0,0.00050684,120]
[354874820,1740763888844,-500.0,0.00050684,120]
[354874821,1740763888885,-500.0,0.00050684,120]
[354874822,1740763888928,-501.90519677,0.00050684,120]
[354874823,1740763888970,-4403.85,0.00050684,120]
[354874824,1740763889011,-500.0,0.00050684,120]
[354874825,1740763889053,-500.0,0.00050684,120]
[354874826,1740763889096,-500.0,0.00050684,120]
[354874827,1740763889141,-500.0,0.00050684,120]
[354874828,1740763889184,-500.0,0.00050684,120]
[354874829,1740763889225,-500.0,0.00050684,120]
[354874830,1740763889266,-898.49,0.00050958,120]
[354874831,1740763889308,-500.0,0.00050958,120]
[354874832,1740763889350,-1209.27,0.00050958,120]
[354874833,1740763889399,-500.0,0.00050958,120]
[354874834,1740763889443,-595.04,0.00050958,120]
[354874835,1740763889490,-1327.77,0.00050958,120]
[354874836,1740763889537,-19765.95,0.00050958,120]
[354874837,1740763889580,-904.26,0.00050958,120]
[354874838,1740763889624,-1574.5,0.00050958,120]
[354874839,1740763889668,-522.14,0.00050958,120]
[354874840,1740763889713,-500.0,0.00050958,120]
[354874841,1740763889760,-657.81,0.00050958,120]
[354874842,1740763889803,-3240.41,0.00050958,120]
[354874843,1740763889845,-341.89809095,0.00050958,120]
[354874844,1740763889891,-3440.37,0.00050958,120]
[354874845,1740763889932,-6768.94,0.00050958,120]
[354874846,1740763889973,-500.0,0.00050958,120]
[354874847,1740763890015,-500.0,0.00050958,120]
[354874848,1740763890059,-837.24,0.00050958,120]
[354874849,1740763890104,-2561.5,0.00050958,120]
[354874850,1740763890153,-1422.08,0.00050958,120]
[354874851,1740763890202,-2686.01,0.00050958,120]
[354874852,1740763890249,-827.72,0.00050958,120]
[354874853,1740763890293,-2695.44,0.00050958,120]
[354874854,1740763890336,-13548.47,0.00050958,120]
[354874855,1740763890378,-500.0,0.00050958,120]
[354874856,1740763890424,-5034.29,0.00050958,120]
[354874857,1740763890481,-545.4,0.00050958,120]
[354874858,1740763890529,-500.0,0.00050958,120]
[354874859,1740763890574,-2823.14,0.00050958,120]
[354874860,1740763890620,-637.56,0.00050958,120]
[354874861,1740763890668,-2413.14,0.00050958,120]
[354874862,1740763890712,-500.0,0.00050958,120]
[354874863,1740763890755,-500.0,0.00050958,120]
[354874864,1740763890799,-500.0,0.00050958,120]
[354874865,1740763890844,-1750.37,0.00050958,120]
[354874866,1740763890888,-500.0,0.00050958,120]
[354874867,1740763890933,-500.0,0.00050958,120]
[354874868,1740763890979,-500.0,0.00050958,120]
[354874869,1740763891024,-4403.85,0.00050958,120]
[354874870,1740763891069,-208.84989201,0.00050958,120]
[354874871,1740763891113,-607.8,0.00050958,120]
[354874872,1740763891157,-500.0,0.00050958,120]
[354874873,1740763891200,-500.0,0.00050958,120]
[354874874,1740763891244,-500.0,0.00050958,120]
[354874875,1740763891287,-500.0,0.00050958,120]
[354874876,1740763891330,-898.49,0.00051232,120]
[354874877,1740763891373,-517.69231393,0.00051232,120]
[354874878,1740763891420,-1209.27,0.00051232,120]
[354874879,1740763891466,-500.0,0.00051232,120]
[354874880,1740763891510,-595.04,0.00051232,120]
[354874881,1740763891554,-1327.77,0.00051232,120]
[354874882,1740763891602,-19765.95,0.00051232,120]
[354874883,1740763891650,-904.26,0.00051232,120]
[354874884,1740763891693,-1574.5,0.00051232,120]
[354874885,1740763891736,-522.14,0.00051232,120]
[354874886,1740763891782,-500.0,0.00051232,120]
[354874887,1740763891824,-657.81,0.00051232,120]
[354874888,1740763891866,-3240.41,0.00051232,120]
[354874889,1740763891909,-3440.37,0.00051232,120]
[354874890,1740763891951,-6768.94,0.00051232,120]
[354874891,1740763891993,-500.0,0.00051232,120]
[354874892,1740763892034,-500.0,0.00051232,120]
[354874893,1740763892074,-837.24,0.00051232,120]
[354874894,1740763892113,-2561.5,0.00051232,120]
[354874895,1740763892154,-1422.08,0.00051232,120]
[354874896,1740763892195,-2686.01,0.00051232,120]
[354874897,1740763892237,-827.72,0.00051232,120]
[354874898,1740763892442,-2695.44,0.00051232,120]
[354874899,1740763892486,-13548.47,0.00051232,120]
[354874900,1740763892530,-500.0,0.00051232,120]
[354874901,1740763892574,-5034.29,0.00051232,120]
[354874902,1740763892617,-545.4,0.00051232,120]
[354874903,1740763892658,-2823.14,0.00051232,120]
[354874904,1740763892700,-500.0,0.00051232,120]
[354874905,1740763892741,-637.56,0.00051232,120]
[354874906,1740763892783,-2413.14,0.00051232,120]
[354874907,1740763892825,-408.90908463,0.00051232,120]
[354874908,1740763892867,-500.0,0.00051232,120]
[354874909,1740763892909,-500.0,0.00051232,120]
[354874910,1740763892950,-1750.37,0.00051232,120]
[354874911,1740763892992,-500.0,0.00051232,120]
[354874912,1740763893044,-500.0,0.00051232,120]
[354874913,1740763893094,-500.0,0.00051232,120]
[354874914,1740763893140,-4403.85,0.00051232,120]
[354874915,1740763893189,-500.0,0.00051232,120]
[354874916,1740763893240,-500.0,0.00051232,120]
[354874917,1740763893285,-500.0,0.00051232,120]
[354874918,1740763893330,-500.0,0.00051232,120]
[354874919,1740763893373,-898.49,0.00051506,120]
[354874920,1740763893422,-1209.27,0.00051506,120]
[354874921,1740763893470,-500.0,0.00051506,120]
[354874922,1740763893518,-595.04,0.00051506,120]
[354874923,1740763893567,-1327.77,0.00051506,120]
[354874924,1740763893615,-19765.95,0.00051506,120]
[354874925,1740763893663,-904.26,0.00051506,120]
[354874926,1740763893710,-1574.5,0.00051506,120]
[354874927,1740763893755,-522.14,0.00051506,120]
[354874928,1740763893800,-184.57764384,0.00051506,120]
[354874929,1740763893844,-657.81,0.00051506,120]
[354874930,1740763893889,-3240.41,0.00051506,120]
[354874931,1740763893935,-3440.37,0.00051506,120]
[354874932,1740763893979,-6768.94,0.00051506,120]
[354874933,1740763894024,-500.0,0.00051506,120]
[354874934,1740763894068,-500.0,0.00051506,120]
[354874935,1740763894112,-837.24,0.00051506,120]
[354874936,1740763894154,-2561.5,0.00051506,120]
[354874937,1740763894199,-1422.08,0.00051506,120]
[354874938,1740763894243,-2686.01,0.00051506,120]
[354874939,1740763894286,-827.72,0.00051506,120]
[354874940,1740763894329,-2695.44,0.00051506,120]
[354874941,1740763894372,-13548.47,0.00051506,120]
[354874942,1740763894415,-331.32323546,0.00051506,120]
[354874943,1740763894459,-5034.29,0.00051506,120]
[354874944,1740763894503,-545.4,0.00051506,120]
[354874945,1740763894546,-2823.14,0.00051506,120]
[354874946,1740763894588,-500.0,0.00051506,120]
[354874947,1740763894628,-637.56,0.00051506,120]
[354874948,1740763894673,-2413.14,0.00051506,120]
[354874949,1740763894716,-500.0,0.00051506,120]
[354874950,1740763894758,-500.0,0.00051506,120]
[354874951,1740763894799,-1750.37,0.00051506,120]
[354874952,1740763894838,-398.45440955,0.00051506,120]
[354874953,1740763894877,-500.0,0.00051506,120]
[354874954,1740763894919,-500.0,0.00051506,120]
[354874955,1740763894964,-4403.85,0.00051506,120]
[354874956,1740763895007,-500.0,0.00051506,120]
[354874957,1740763895050,-500.0,0.00051506,120]
[354874958,1740763895090,-500.0,0.00051506,120]
[354874959,1740763895129,-500.0,0.00051506,120]
[354874960,1740763895170,-898.49,0.0005178,120]
[354874961,1740763895209,-1209.27,0.0005178,120]
[354874962,1740763895250,-500.0,0.0005178,120]
[354874963,1740763895288,-595.04,0.0005178,120]
[354874964,1740763895327,-1327.77,0.0005178,120]
[354874965,1740763895365,-19765.95,0.0005178,120]
[354874966,1740763895408,-904.26,0.0005178,120]
[354874967,1740763895449,-1574.5,0.0005178,120]
[354874968,1740763895489,-522.14,0.0005178,120]
[354874969,1740763895528,-657.81,0.0005178,120]
[354874970,1740763895568,-3240.41,0.0005178,120]
[354874971,1740763895610,-3440.37,0.0005178,120]
[354874972,1740763895651,-6768.94,0.0005178,120]
[354874973,1740763895690,-638.61383239,0.0005178,120]
[354874974,1740763895732,-216.35197661,0.0005178,120]
[354874975,1740763895771,-837.24,0.0005178,120]
[354874976,1740763895811,-2561.5,0.0005178,120]
[354874977,1740763895850,-1422.08,0.0005178,120]
[354874978,1740763895892,-2686.01,0.0005178,120]
[354874979,1740763895935,-827.72,0.0005178,120]
[354874980,1740763895976,-2695.44,0.0005178,120]
[354874981,1740763896016,-13548.47,0.0005178,120]
[354874982,1740763896056,-5034.29,0.0005178,120]
[354874983,1740763896095,-545.4,0.0005178,120]
[354874984,1740763896135,-2823.14,0.0005178,120]
[354874985,1740763896181,-500.0,0.0005178,120]
[354874986,1740763896221,-637.56,0.0005178,120]
[354874987,1740763896260,-2413.14,0.0005178,120]
[354874988,1740763896305,-500.0,0.0005178,120]
[354874989,1740763896345,-500.0,0.0005178,120]
[354874990,1740763896387,-1750.37,0.0005178,120]
[354874991,1740763896434,-500.0,0.0005178,120]
[354874992,1740763896622,-500.0,0.0005178,120]
[354874993,1740763896667,-4403.85,0.0005178,120]
[354874994,1740763896713,-500.0,0.0005178,120]
[354874995,1740763896756,-500.0,0.0005178,120]
[354874996,1740763896799,-500.0,0.0005178,120]
[354874997,1740763896841,-500.0,0.0005178,120]
[354874998,1740763896882,-898.49,0.00052054,120]
[354874999,1740763896924,-1209.27,0.00052054,120]
[354875000,1740763896964,-500.0,0.00052054,120]
[354875001,1740763897005,-595.04,0.00052054,120]
[354875002,1740763897044,-1327.77,0.00052054,120]
[354875003,1740763897083,-19765.95,0.00052054,120]
[354875004,1740763897122,-904.26,0.00052054,120]
[354875005,1740763897163,-1574.5,0.00052054,120]
[354875006,1740763897204,-522.14,0.00052054,120]
[354875007,1740763897246,-657.81,0.00052054,120]
[354875008,1740763897287,-3240.41,0.00052054,120]
[354875009,1740763897329,-3440.37,0.00052054,120]
[354875010,1740763897369,-6768.94,0.00052054,120]
[354875011,1740763897412,-837.24,0.00052054,120]
[354875012,1740763897454,-2561.5,0.00052054,120]
[354875013,1740763897499,-1422.08,0.00052054,120]
[354875014,1740763897542,-2686.01,0.00052054,120]
[354875015,1740763897586,-827.72,0.00052054,120]
[354875016,1740763897630,-2695.44,0.00052054,120]
[354875017,1740763897674,-13548.47,0.00052054,120]
[354875018,1740763897716,-3000.0,0.00052054,120]
[354875019,1740763897758,-5034.29,0.00052054,120]
[354875020,1740763897798,-545.4,0.00052054,120]
[354875021,1740763897839,-2823.14,0.00052054,120]
[354875022,1740763897880,-500.0,0.00052054,120]
[354875023,1740763897924,-637.56,0.00052054,120]
[354875024,1740763897965,-2413.14,0.00052054,120]
[354875025,1740763898006,-500.0,0.00052054,120]
[354875026,1740763898049,-574.59991514,0.00052054,120]
[354875027,1740763898102,-1750.37,0.00052054,120]
[354875028,1740763898159,-3000.0,0.00052054,120]
[354875029,1740763898205,-500.0,0.00052054,120]
[354875030,1740763898248,-500.0,0.00052054,120]
[354875031,1740763898289,-4403.85,0.00052054,120]
[354875032,1740763898332,-233.26960611,0.00052054,120]
[354875033,1740763898373,-500.0,0.00052054,120]
[354875034,1740763898416,-500.0,0.00052054,120]
[354875035,1740763898460,-500.0,0.00052054,120]
[354875036,1740763898507,-370930.13293071,0.00052055,59]
[354875037,1740763898549,-3465909.93374848,0.00052055,59]
[354875038,1740763898866,-500.0,0.00049315,120]
[354875039,1740763898909,-561.90595037,0.00049315,120]
[354875040,1740763898956,-505.68669501,0.00049589,120]
[354875041,1740763898999,-500.0,0.00049589,120]
[354875042,1740763899041,-500.0,0.00049863,120]
[354875043,1740763899087,-4997432.40735462,0.00052055,59]
[354875044,1740763925685,-19607.61712864,0.0004859,120]
[354875045,1740763925726,-200000.0,0.0004859,120]
[354875046,1740763925773,-500.0,0.00049315,120]
[354875047,1740763925821,-3078.55,0.00049315,120]
[354875048,1740763925864,-3078.55,0.00049315,120]
[354875049,1740763925907,-3078.55,0.00049315,120]
[354875050,1740763925950,-3078.55,0.00049315,120]
[354875051,1740763925992,-3078.55,0.00049315,120]
[354875052,1740763926033,-3078.55,0.00049315,120]
[354875053,1740763926075,-3078.55,0.00049315,120]
[354875054,1740763926117,-3078.55,0.00049315,120]
[354875055,1740763926157,-3078.55,0.00049315,120]
[354875056,1740763926199,-3078.55,0.00049315,120]